lending/lending_fUSD_20240705
["ID","MTS","AMOUNT","RATE_DAILY","PERIOD"]
[331268693,1720169264310,-171.0299487,0.00049824,30]
[331268694,1720169264789,-150.0,0.00049863,30]
[331268695,1720169265269,-166.54422038,0.00049868,30]
[331268696,1720169265542,-206.057,0.00049897,120]
[331268697,1720169265586,-206.058,0.00049897,120]
[331268698,1720169265632,-162.966,0.00049897,120]
[331268699,1720169265678,-206.057,0.00049897,120]
[331268700,1720169265731,-162.966,0.00049897,120]
[331268701,1720169265775,-206.057,0.00049897,120]
[331268702,1720169265819,-206.057,0.00049897,120]
[331268703,1720169266027,-183.59426507,0.000499,120]
[331268704,1720169266577,-1252.20184709,0.000499,30]
[331268705,1720169267309,-150.0,0.0004991,30]
[331268706,1720169267798,-166.54422038,0.00049923,30]
[331268707,1720169268027,-151.10791818,0.00049933,30]
[331268708,1720169268088,-150.0,0.00049941,30]
[331268709,1720169268141,-663.23472509,0.0004996,30]
[331268710,1720169268198,-166.54422038,0.00049979,30]
[331268711,1720169268252,-50000.0,0.0005,50]
[331268712,1720169268299,-50000.0,0.0005,40]
[331268713,1720169268349,-809.02662233,0.0005,120]
[331268714,1720169268393,-150.0,0.0005,120]
[331268715,1720169268443,-155.10134907,0.0005,60]
[331268716,1720169268488,-943.71511552,0.0005,120]
[331268717,1720169268533,-1218.21723276,0.0005,120]
[331268718,1720169268578,-804.78794465,0.0005,120]
[331268719,1720169268622,-231.75938644,0.0005,120]
[331268720,1720169268669,-500.3807954,0.0005,120]
[331268721,1720169268716,-150.0,0.0005,60]
[331268722,1720169268763,-200.0,0.0005,120]
[331268723,1720169268809,-150.0,0.00050029,30]
[331268724,1720169268855,-166.54422038,0.00050034,30]
[331268725,1720169268899,-166.54422038,0.00050089,30]
[331268726,1720169268945,-150.0,0.00050097,30]
[331268727,1720169268991,-1252.20184709,0.00050112,60]
[331268728,1720169269039,-166.54422038,0.00050145,30]
[331268729,1720169269084,-150.0,0.00050148,30]
[331268730,1720169269130,-301.63640273,0.000502,120]
[331268731,1720169269176,-166.54422038,0.000502,30]
[331268732,1720169269221,-150.0,0.00050228,30]
[331268733,1720169269268,-194.78182293,0.00050233,60]
[331268734,1720169269314,-150.0,0.00050254,30]
[331268735,1720169269360,-166.54422038,0.00050256,30]
[331268736,1720169269404,-150.0,0.00050268,30]
[331268737,1720169269449,-166.54422038,0.00050311,30]
[331268738,1720169269494,-151.0,0.00050329,120]
[331268739,1720169269541,-166.54422038,0.00050366,30]
[331268740,1720169269585,-150.0,0.00050387,30]
[331268741,1720169269628,-150.0,0.0005041,30]
[331268742,1720169269671,-150.0,0.0005041,30]
[331268743,1720169269718,-166.54422038,0.00050422,30]
[331268744,1720169269767,-5335.2,0.00050453,117]
[331268745,1720169269814,-166.54422038,0.00050477,30]
[331268746,1720169269861,-150.0,0.00050506,30]
[331268747,1720169270344,-166.54422038,0.00050532,30]
[331268748,1720169270387,-159.75880261,0.00050563,60]
[331268749,1720169270430,-150.0,0.00050567,30]
[331268750,1720169270475,-166.54422038,0.00050588,30]
[331268751,1720169270522,-150.0,0.00050625,30]
[331268752,1720169270568,-194.78182293,0.00050635,60]
[331268753,1720169270611,-166.54422038,0.00050643,30]
[331268754,1720169270653,-1014.38,0.0005068,47]
[331268755,1720169270695,-166.54422038,0.00050698,30]
[331268756,1720169270741,-150.0,0.00050724,30]
[331268757,1720169270786,-151.0,0.0005074,120]
[331268758,1720169270828,-150.0,0.00050744,30]
[331268759,1720169270871,-166.54422038,0.00050754,30]
[331268760,1720169270915,-194.78182293,0.00050788,60]
[331268761,1720169270957,-166.54422038,0.00050809,30]
[331268762,1720169270998,-150.0,0.00050863,30]
[331268763,1720169271044,-166.54422038,0.00050864,30]
[331268764,1720169271086,-150.0,0.0005088,30]
[331268765,1720169271128,-651.8697106,0.0005089,120]
[331268766,1720169271172,-166.54422038,0.0005092,30]
[331268767,1720169271216,-569.75138566,0.00050932,60]
[331268768,1720169271261,-150.0,0.00050958,30]
[331268769,1720169271304,-166.54422038,0.00050975,30]
[331268770,1720169271349,-150.0,0.00050982,30]
[331268771,1720169271395,-50000.0,0.00051,51]
[331268772,1720169271439,-166.54422038,0.0005103,30]
[331268773,1720169271483,-3923.37045761,0.00051035,60]
[331268774,1720169271525,-150.0,0.00051037,30]
[331268775,1720169271567,-156.52001137,0.00051073,60]
[331268776,1720169271610,-166.54422038,0.00051086,30]
[331268777,1720169271653,-150.0,0.00051101,30]
[331268778,1720169271696,-151.0,0.00051123,120]
[331268779,1720169271744,-154.45366859,0.00051132,60]
[331268780,1720169271786,-322.75234669,0.0005114,60]
[331268781,1720169271831,-166.54422038,0.00051141,30]
[331268782,1720169271872,-150.0,0.00051141,30]
[331268783,1720169271915,-150.0,0.00051193,30]
[331268784,1720169271958,-166.54422038,0.00051196,30]
[331268785,1720169272001,-663.23472509,0.00051219,60]
[331268786,1720169272043,-150.0,0.0005122,30]
[331268787,1720169272085,-194.78182293,0.00051233,60]
[331268788,1720169272126,-171.02994873,0.00051235,60]
[331268789,1720169272166,-197.041503,0.00051247,60]
[331268790,1720169272209,-166.54422038,0.00051252,30]
[331268791,1720169272251,-194.78182293,0.00051258,60]
[331268792,1720169272292,-166.54422038,0.00051307,30]
[331268793,1720169272337,-150.0,0.0005134,30]
[331268794,1720169272380,-150.0,0.0005135,30]
[331268795,1720169272422,-166.54422038,0.00051362,30]
[331268796,1720169272466,-166.54422038,0.00051418,30]
[331268797,1720169272509,-151.10791818,0.00051452,60]
[331268798,1720169272552,-150.0,0.00051459,30]
[331268799,1720169272595,-166.54422038,0.00051473,30]
[331268800,1720169272638,-166.6666667,0.00051497,60]
[331268801,1720169272680,-150.0,0.00051506,30]
[331268802,1720169272724,-150.0,0.00051506,30]
[331268803,1720169272768,-166.54422038,0.00051528,30]
[331268804,1720169272811,-150.0,0.00051578,30]
[331268805,1720169272853,-166.54422038,0.00051584,30]
[331268806,1720169272896,-166.54422038,0.00051639,30]
[331268807,1720169272940,-150.0,0.00051663,30]
[331268808,1720169272983,-166.54422038,0.00051695,30]
[331268809,1720169273024,-150.0,0.00051697,30]
[331268810,1720169273066,-166.54422038,0.0005175,30]
[331268811,1720169273108,-197.041503,0.00051755,60]
[331268812,1720169273150,-569.75138566,0.00051795,60]
[331268813,1720169273197,-154.45366859,0.00051797,60]
[331268814,1720169273240,-166.54422038,0.00051805,30]
[331268815,1720169273282,-150.0,0.00051816,30]
[331268816,1720169273355,-150.0,0.00051819,30]
[331268817,1720169273397,-166.54422038,0.00051861,30]
[331268818,1720169273440,-166.54422038,0.00051916,30]
[331268819,1720169273484,-151.0,0.00051918,120]
[331268820,1720169273525,-165.1,0.00051925,60]
[331268821,1720169273566,-150.0,0.00051935,30]
[331268822,1720169273607,-611.41675249,0.0005195,60]
[331268823,1720169273650,-166.54422038,0.00051971,30]
[331268824,1720169273692,-322.75234669,0.00051974,60]
[331268825,1720169273739,-150.0,0.00051976,30]
[331268826,1720169273785,-50000.0,0.00052,52]
[331268827,1720169273827,-1000000.0,0.00052,120]
[331268828,1720169273870,-1000000.0,0.00052,120]
[331268829,1720169273911,-395.84374888,0.00052,120]
[331268830,1720169273952,-104818.19423619,0.00052,30]
[331268831,1720169273995,-151.10791818,0.0005202,60]
[331268832,1720169274038,-166.54422038,0.00052027,30]
[331268833,1720169274081,-322.75234669,0.00052044,60]
[331268834,1720169274123,-150.0,0.00052054,30]
[331268835,1720169274167,-150.0,0.00052054,30]
[331268836,1720169274210,-150.0,0.00052054,30]
[331268837,1720169274251,-181.28273598,0.00052055,120]
[331268838,1720169274296,-569.75138566,0.00052067,60]
[331268839,1720169274339,-166.75903185,0.0005208,60]
[331268840,1720169274382,-166.54422038,0.00052082,30]
[331268841,1720169274425,-151.0,0.00052082,120]
[331268842,1720169274470,-150.0,0.00052133,30]
[331268843,1720169274517,-166.54422038,0.00052137,30]
[331268844,1720169274562,-161.72829651,0.00052171,60]
[331268845,1720169274606,-150.0,0.00052173,30]
[331268846,1720169274649,-166.54422038,0.00052193,30]
[331268847,1720169274692,-166.54422038,0.00052248,30]
[331268848,1720169274741,-1014.38,0.0005227,59]
[331268849,1720169274787,-150.0,0.00052289,30]
[331268850,1720169274830,-150.0,0.00052293,30]
[331268851,1720169274872,-166.6666667,0.00052303,60]
[331268852,1720169274917,-166.54422038,0.00052303,30]
[331268853,1720169274960,-166.54422038,0.00052359,30]
[331268854,1720169275003,-569.75138566,0.00052393,60]
[331268855,1720169275048,-169.42393583,0.00052406,60]
[331268856,1720169275090,-150.0,0.00052412,30]
[331268857,1720169275140,-166.54422038,0.00052414,30]
[331268858,1720169275184,-1252.2018472,0.00052425,60]
[331268859,1720169275231,-150.0,0.00052446,30]
[331268860,1720169275277,-166.54422038,0.00052469,30]
[331268861,1720169275320,-166.54422038,0.00052525,30]
[331268862,1720169275364,-150.0,0.00052531,30]
[331268863,1720169275408,-194.78182308,0.0005255,60]
[331268864,1720169275449,-197.041503,0.00052578,60]
[331268865,1720169275497,-166.54422038,0.0005258,30]
[331268866,1720169275540,-500.0,0.00052602,30]
[331268867,1720169275584,-150.0,0.00052602,30]
[331268868,1720169275628,-150.0,0.00052602,30]
[331268869,1720169275671,-197.04150319,0.00052611,60]
[331268870,1720169275716,-166.54422038,0.00052635,30]
[331268871,1720169275767,-150.0,0.0005265,30]
[331268872,1720169275809,-322.75234669,0.00052669,60]
[331268873,1720169275851,-166.54422038,0.00052691,30]
[331268874,1720169275890,-200.0,0.000527,31]
[331268875,1720169275932,-151.0,0.00052712,120]
[331268876,1720169275976,-663.23472509,0.00052726,60]
[331268877,1720169276022,-663.23472509,0.00052728,60]
[331268878,1720169276066,-166.54422038,0.00052746,30]
[331268879,1720169276108,-150.0,0.00052759,30]
[331268880,1720169276150,-150.0,0.00052769,30]
[331268881,1720169276195,-166.54422038,0.00052801,30]
[331268882,1720169276238,-151.10791818,0.00052821,60]
[331268883,1720169276283,-166.54422038,0.00052857,30]
[331268884,1720169276327,-150.0,0.00052888,30]
[331268885,1720169276367,-166.54422038,0.00052912,30]
[331268886,1720169276407,-150.0,0.00052915,30]
[331268887,1720169276447,-663.23472536,0.00052935,60]
[331268888,1720169276488,-166.54422038,0.00052968,30]
[331268889,1720169276527,-150.0,0.00052968,30]
[331268890,1720169276570,-50000.0,0.00053,53]
[331268891,1720169276612,-150.0,0.00053007,30]
[331268892,1720169276655,-3923.37045782,0.00053013,60]
[331268893,1720169276697,-166.54422038,0.00053023,30]
[331268894,1720169276745,-150.0,0.00053072,30]
[331268895,1720169276786,-166.54422038,0.00053078,30]
[331268896,1720169276828,-150.0,0.00053126,30]
[331268897,1720169276869,-166.54422038,0.00053134,30]
[331268898,1720169276910,-150.0,0.0005315,30]
[331268899,1720169276953,-150.0,0.00053158,30]
[331268900,1720169276996,-569.75138566,0.00053171,60]
[331268901,1720169277040,-166.54422038,0.00053189,30]
[331268902,1720169277083,-150.0,0.00053228,30]
[331268903,1720169277126,-166.54422038,0.00053244,30]
[331268904,1720169277169,-150.0,0.00053245,30]
[331268905,1720169277214,-166.54422038,0.000533,30]
[331268906,1720169277255,-166.54422038,0.00053355,30]
[331268907,1720169277296,-150.0,0.00053365,30]
[331268908,1720169277338,-150.0,0.00053385,30]
[331268909,1720169277380,-500.0,0.00053391,30]
[331268910,1720169277424,-166.54422038,0.0005341,30]
[331268911,1720169277468,-151.0,0.00053425,120]
[331268912,1720169277513,-166.54422038,0.00053466,30]
[331268913,1720169277554,-150.0,0.00053484,30]
[331268914,1720169277597,-151.0,0.00053507,120]
[331268915,1720169277639,-166.54422038,0.00053521,30]
[331268916,1720169277681,-150.0,0.00053537,120]
[331268917,1720169277725,-150.0,0.00053542,30]
[331268918,1720169277774,-166.54422038,0.00053576,30]
[331268919,1720169277818,-150.0,0.00053603,30]
[331268920,1720169277861,-166.54422038,0.00053632,30]
[331268921,1720169278003,-166.54422038,0.00053687,30]
[331268922,1720169278047,-1141.50555667,0.00053698,120]
[331268923,1720169278092,-150.0,0.00053698,30]
[331268924,1720169278136,-150.0,0.00053698,30]
[331268925,1720169278181,-5745.59,0.00053704,117]
[331268926,1720169278227,-150.0,0.00053722,30]
[331268927,1720169278274,-611.41675249,0.00053738,60]
[331268928,1720169278318,-166.54422038,0.00053742,30]
[331268929,1720169278361,-569.75138566,0.00053776,60]
[331268930,1720169278403,-166.54422038,0.00053798,30]
[331268931,1720169278446,-166.6666667,0.0005381,60]
[331268932,1720169278491,-150.0,0.00053841,30]
[331268933,1720169278535,-166.54422038,0.00053853,30]
[331268934,1720169278577,-150.0,0.00053855,30]
[331268935,1720169278621,-1014.38,0.0005386,72]
[331268936,1720169278664,-150.0,0.00053881,30]
[331268937,1720169278712,-166.54422038,0.00053908,30]
[331268938,1720169278759,-154.45366862,0.00053945,60]
[331268939,1720169278803,-150.0,0.0005396,30]
[331268940,1720169278847,-166.54422038,0.00053964,30]
[331268941,1720169278898,-50000.0,0.00054,54]
[331268942,1720169278942,-1000000.0,0.00054,120]
[331268943,1720169278986,-1000.0,0.00054,60]
[331268944,1720169279031,-150.0,0.00054011,30]
[331268945,1720169279076,-166.54422038,0.00054019,30]
[331268946,1720169279120,-154.42831927,0.00054042,60]
[331268947,1720169279167,-166.54422038,0.00054074,30]
[331268948,1720169279210,-150.0,0.00054079,30]
[331268949,1720169279254,-322.75234669,0.00054129,60]
[331268950,1720169279302,-166.54422038,0.0005413,30]
[331268951,1720169279346,-322.75234689,0.00054131,60]
[331268952,1720169279388,-150.0,0.00054168,30]
[331268953,1720169279430,-166.6666667,0.00054173,60]
[331268954,1720169279471,-166.54422038,0.00054185,30]
[331268955,1720169279512,-500.0,0.00054192,30]
[331268956,1720169279553,-150.0,0.00054198,30]
[331268957,1720169279595,-176.90124829,0.0005421,120]
[331268958,1720169279638,-166.54422038,0.00054241,30]
[331268959,1720169279679,-150.0,0.00054246,30]
[331268960,1720169279721,-382.82688,0.0005425,69]
[331268961,1720169279764,-166.54422038,0.00054296,30]
[331268962,1720169279805,-151.0,0.00054301,120]
[331268963,1720169279847,-150.0,0.00054318,30]
[331268964,1720169279886,-1069.15920388,0.00054321,82]
[331268965,1720169279930,-150.0,0.00054324,30]
[331268966,1720169279972,-166.54422038,0.00054351,30]
[331268967,1720169280017,-166.54422038,0.00054407,30]
[331268968,1720169280061,-150.0,0.00054437,30]
[331268969,1720169280350,-382.82688,0.0005446,70]
[331268970,1720169280399,-166.54422038,0.00054462,30]
[331268971,1720169280447,-150.0,0.00054481,30]
[331268972,1720169280496,-166.6666667,0.00054495,60]
[331268973,1720169280546,-166.54422038,0.00054517,30]
[331268974,1720169280595,-611.41675249,0.0005454,60]
[331268975,1720169280643,-150.0,0.00054556,30]
[331268976,1720169280693,-166.54422038,0.00054573,30]
[331268977,1720169280745,-166.54422038,0.00054628,30]
[331268978,1720169280794,-150.0,0.00054637,30]
[331268979,1720169280843,-150.0,0.00054675,30]
[331268980,1720169280894,-166.54422038,0.00054683,30]
[331268981,1720169280942,-151.1079182,0.00054688,60]
[331268982,1720169280991,-200.0,0.000547,33]
[331268983,1720169281042,-569.75138586,0.00054715,60]
[331268984,1720169281093,-166.54422038,0.00054739,30]
[331268985,1720169281144,-151.0,0.00054767,120]
[331268986,1720169281201,-501.11916738,0.00054794,120]
[331268987,1720169281251,-500.0,0.00054794,120]
[331268988,1720169281301,-501.88252524,0.00054794,120]
[331268989,1720169281351,-500.0,0.00054794,120]
[331268990,1720169281400,-500.489637,0.00054794,120]
[331268991,1720169281448,-500.0,0.00054794,120]
[331268992,1720169281500,-501.12162703,0.00054794,120]
[331268993,1720169281551,-500.0,0.00054794,120]
[331268994,1720169281605,-204.99095078,0.00054794,120]
[331268995,1720169281913,-503.39566373,0.00054794,120]
[331268996,1720169281963,-500.0,0.00054794,120]
[331268997,1720169282013,-501.36925701,0.00054794,120]
[331268998,1720169282063,-1040.0,0.00054794,30]
[331268999,1720169282115,-500.0,0.00054794,120]
[331269000,1720169282170,-501.5792132,0.00054794,120]
[331269001,1720169282222,-402.768852,0.00054794,120]
[331269002,1720169282273,-500.0,0.00054794,120]
[331269003,1720169282324,-503.5892441,0.00054794,120]
[331269004,1720169282374,-500.0,0.00054794,120]
[331269005,1720169282423,-500.0,0.00054794,120]
[331269006,1720169282470,-347.33809155,0.00054794,120]
[331269007,1720169282718,-500.0,0.00054794,120]
[331269008,1720169282783,-500.0,0.00054794,120]
[331269009,1720169282829,-502.93963259,0.00054794,120]
[331269010,1720169282878,-500.0,0.00054794,120]
[331269011,1720169282926,-500.0,0.00054794,120]
[331269012,1720169282971,-1000.0,0.00054794,120]
[331269013,1720169283019,-239.50828256,0.00054794,120]
[331269014,1720169283065,-1000.0,0.00054794,120]
[331269015,1720169283113,-1000.0,0.00054794,120]
[331269016,1720169283161,-962.74,0.00054794,120]
[331269017,1720169283210,-500.0,0.00054794,120]
[331269018,1720169283493,-643.51348723,0.00054794,120]
[331269019,1720169283547,-500.0,0.00054794,120]
[331269020,1720169283595,-608.91696036,0.00054794,120]
[331269021,1720169283640,-500.0,0.00054794,120]
[331269022,1720169283686,-500.0,0.00054794,120]
[331269023,1720169283733,-500.0,0.00054794,120]
[331269024,1720169283782,-529.24962615,0.00054794,120]
[331269025,1720169283828,-500.0,0.00054794,120]
[331269026,1720169283874,-500.0,0.00054794,120]
[331269027,1720169283919,-500.0,0.00054794,120]
[331269028,1720169283965,-500.0,0.00054794,120]
[331269029,1720169284014,-500.0,0.00054794,120]
[331269030,1720169284063,-500.0,0.00054794,120]
[331269031,1720169284109,-500.0,0.00054794,120]
[331269032,1720169284158,-500.0,0.00054794,120]
[331269033,1720169284207,-608.47773013,0.00054794,120]
[331269034,1720169284252,-500.0,0.00054794,120]
[331269035,1720169284298,-509.87708786,0.00054794,120]
[331269036,1720169284344,-500.0,0.00054794,120]
[331269037,1720169284390,-500.0,0.00054794,120]
[331269038,1720169284437,-500.0,0.00054794,120]
[331269039,1720169284482,-226.85189841,0.00054794,120]
[331269040,1720169284529,-500.0,0.00054794,120]
[331269041,1720169284577,-500.0,0.00054794,120]
[331269042,1720169284632,-500.0,0.00054794,120]
[331269043,1720169284678,-512.21179145,0.00054794,120]
[331269044,1720169284724,-500.0,0.00054794,120]
[331269045,1720169284770,-500.0,0.00054794,120]
[331269046,1720169284814,-514.10351495,0.00054794,120]
[331269047,1720169284857,-503.70772435,0.00054794,120]
[331269048,1720169284899,-503.61352868,0.00054794,120]
[331269049,1720169285173,-324.77481369,0.00054794,120]
[331269050,1720169285216,-503.60961315,0.00054794,120]
[331269051,1720169285258,-500.0,0.00054794,120]
[331269052,1720169285298,-500.0,0.00054794,120]
[331269053,1720169285338,-500.0,0.00054794,120]
[331269054,1720169285379,-500.0,0.00054794,120]
[331269055,1720169285420,-319.12770681,0.00054794,120]
[331269056,1720169285463,-500.0,0.00054794,120]
[331269057,1720169285506,-510.79911,0.00054794,120]
[331269058,1720169285550,-500.0,0.00054794,120]
[331269059,1720169285592,-500.0,0.00054794,120]
[331269060,1720169285636,-500.0,0.00054794,120]
[331269061,1720169285679,-500.0,0.00054794,120]
[331269062,1720169285723,-500.0,0.00054794,120]
[331269063,1720169286065,-500.0,0.00054794,120]
[331269064,1720169286108,-500.0,0.00054794,120]
[331269065,1720169286153,-500.0,0.00054794,120]
[331269066,1720169286200,-500.0,0.00054794,120]
[331269067,1720169286245,-500.0,0.00054794,120]
[331269068,1720169286573,-208.67198124,0.00054794,120]
[331269069,1720169286617,-500.0,0.00054794,120]
[331269070,1720169286661,-241.8024808,0.00054794,120]
[331269071,1720169286704,-507.943683,0.00054794,120]
[331269072,1720169286753,-500.0,0.00054794,120]
[331269073,1720169286996,-500.0,0.00054794,120]
[331269074,1720169287040,-500.0,0.00054794,120]
[331269075,1720169287083,-500.0,0.00054794,120]
[331269076,1720169287127,-500.0,0.00054794,120]
[331269077,1720169287172,-500.0,0.00054794,120]
[331269078,1720169287216,-500.0,0.00054794,120]
[331269079,1720169287911,-500.0,0.00054794,120]
[331269080,1720169288141,-500.0,0.00054794,120]
[331269081,1720169288185,-500.0,0.00054794,120]
[331269082,1720169288228,-500.0,0.00054794,120]
[331269083,1720169288272,-500.0,0.00054794,120]
[331269084,1720169288328,-500.0,0.00054794,120]
[331269085,1720169288590,-475.41880618,0.00054794,120]
[331269086,1720169289091,-605.03233885,0.00054794,120]
[331269087,1720169289136,-500.0,0.00054794,120]
[331269088,1720169289183,-507.67927121,0.00054794,120]
[331269089,1720169289229,-507.37093185,0.00054794,120]
[331269090,1720169289278,-500.0,0.00054794,120]
[331269091,1720169289323,-509.10464642,0.00054794,120]
[331269092,1720169289368,-500.0,0.00054794,120]
[331269093,1720169289414,-189.51741177,0.00054794,120]
[331269094,1720169289457,-500.0,0.00054794,120]
[331269095,1720169289500,-367.51960941,0.00054794,120]
[331269096,1720169289546,-502.39147263,0.00054794,120]
[331269097,1720169289591,-500.0,0.00054794,120]
[331269098,1720169289636,-508.02174751,0.00054794,120]
[331269099,1720169289679,-500.0,0.00054794,120]
[331269100,1720169289725,-507.84105375,0.00054794,120]
[331269101,1720169289772,-500.0,0.00054794,120]
[331269102,1720169289817,-170.84968817,0.00054794,120]
[331269103,1720169289861,-508.01537037,0.00054794,120]
[331269104,1720169289906,-500.0,0.00054794,120]
[331269105,1720169289951,-500.0,0.00054794,120]
[331269106,1720169289995,-500.0,0.00054794,120]
[331269107,1720169290042,-500.0,0.00054794,120]
[331269108,1720169290088,-500.0,0.00054794,120]
[331269109,1720169290131,-500.0,0.00054794,120]
[331269110,1720169290177,-500.0,0.00054794,120]
[331269111,1720169290220,-500.0,0.00054794,120]
[331269112,1720169290265,-371.3731613,0.00054794,120]
[331269113,1720169291188,-386.96796692,0.00054794,120]
[331269114,1720169291231,-500.0,0.00054794,120]
[331269115,1720169291276,-500.0,0.00054794,120]
[331269116,1720169291320,-500.0,0.00054794,120]
[331269117,1720169291360,-500.0,0.00054794,120]
[331269118,1720169291400,-598.59395419,0.00054794,120]
[331269119,1720169291444,-500.0,0.00054794,120]
[331269120,1720169291489,-500.0,0.00054794,120]
[331269121,1720169291539,-500.0,0.00054794,120]
[331269122,1720169291581,-500.0,0.00054794,120]
[331269123,1720169291622,-500.0,0.00054794,120]
[331269124,1720169291885,-500.0,0.00054794,120]
[331269125,1720169291930,-500.0,0.00054794,120]
[331269126,1720169291975,-500.0,0.00054794,120]
[331269127,1720169292019,-297.65,0.00054794,120]
[331269128,1720169292061,-507.05972062,0.00054794,120]
[331269129,1720169292103,-500.0,0.00054794,120]
[331269130,1720169292144,-501.1269577,0.00054794,120]
[331269131,1720169292185,-500.0,0.00054794,120]
[331269132,1720169292228,-500.0,0.00054794,120]
[331269133,1720169292270,-500.0,0.00054794,120]
[331269134,1720169292309,-502.88734143,0.00054794,120]
[331269135,1720169292349,-500.0,0.00054794,120]
[331269136,1720169292389,-500.0,0.00054794,120]
[331269137,1720169292428,-500.0,0.00054794,120]
[331269138,1720169292468,-500.0,0.00054794,120]
[331269139,1720169292506,-500.0,0.00054794,120]
[331269140,1720169292543,-500.0,0.00054794,120]
[331269141,1720169292585,-500.0,0.00054794,120]
[331269142,1720169292625,-500.0,0.00054794,120]
[331269143,1720169292665,-500.0,0.00054794,120]
[331269144,1720169292706,-291.95201494,0.00054794,120]
[331269145,1720169292750,-500.0,0.00054794,120]
[331269146,1720169292791,-500.0,0.00054794,120]
[331269147,1720169292830,-500.0,0.00054794,120]
[331269148,1720169292871,-500.0,0.00054794,120]
[331269149,1720169292913,-500.0,0.00054794,120]
[331269150,1720169292954,-500.0,0.00054794,120]
[331269151,1720169292996,-594.06618827,0.00054794,120]
[331269152,1720169293042,-500.0,0.00054794,120]
[331269153,1720169293083,-500.0,0.00054794,120]
[331269154,1720169293123,-369.23553181,0.00054794,120]
[331269155,1720169293166,-500.0,0.00054794,120]
[331269156,1720169293211,-506.75402766,0.00054794,120]
[331269157,1720169293256,-500.0,0.00054794,120]
[331269158,1720169293300,-500.0,0.00054794,120]
[331269159,1720169293340,-503.03580382,0.00054794,120]
[331269160,1720169293381,-500.0,0.00054794,120]
[331269161,1720169293422,-500.0,0.00054794,120]
[331269162,1720169293462,-500.0,0.00054794,120]
[331269163,1720169293503,-500.0,0.00054794,120]
[331269164,1720169293544,-367.81280861,0.00054794,120]
[331269165,1720169293584,-297.99096951,0.00054794,120]
[331269166,1720169293623,-500.0,0.00054794,120]
[331269167,1720169293662,-500.0,0.00054794,120]
[331269168,1720169293702,-439.27439743,0.00054794,120]
[331269169,1720169293753,-746.17,0.00054794,120]
[331269170,1720169293799,-500.0,0.00054794,120]
[331269171,1720169293842,-500.0,0.00054794,120]
[331269172,1720169293885,-746.17,0.00054794,120]
[331269173,1720169293930,-500.0,0.00054794,120]
[331269174,1720169293973,-746.17,0.00054794,120]
[331269175,1720169294016,-500.0,0.00054794,120]
[331269176,1720169294060,-507.10104638,0.00054794,120]
[331269177,1720169294106,-746.17,0.00054794,120]
[331269178,1720169294154,-500.0,0.00054794,120]
[331269179,1720169294204,-746.17,0.00054794,120]
[331269180,1720169294251,-500.0,0.00054794,120]
[331269181,1720169294295,-746.17,0.00054794,120]
[331269182,1720169294342,-500.0,0.00054794,120]
[331269183,1720169294385,-500.0,0.00054794,120]
[331269184,1720169294429,-746.17,0.00054794,120]
[331269185,1720169294627,-500.0,0.00054794,120]
[331269186,1720169294812,-500.0,0.00054794,120]
[331269187,1720169295059,-746.17,0.00054794,120]
[331269188,1720169295103,-500.0,0.00054794,120]
[331269189,1720169295145,-500.0,0.00054794,120]
[331269190,1720169295188,-746.17,0.00054794,120]
[331269191,1720169295237,-233.50865946,0.00054794,120]
[331269192,1720169295285,-449.01566422,0.00054794,120]